[Event "2026 Biel Blitz Open"]
[Site "Biel, CH"]
[Date "2026.07.19"]
[Round "12"]
[White "Cao, Qingfeng"]
[Black "Haimovich, Tal"]
[Result "1-0"]
[Board "9"]
[TimeControl "180+2"]
[WhiteFideId "8627568"]
[BlackFideId "2801698"]
[WhiteElo "2264"]
[BlackElo "2347"]
[WhiteTitle "IM"]
[BlackTitle "IM"]
[WhiteClock "0:01:09"]
[BlackClock "0:00:06"]
[Variant "Standard"]
[EndDate "2026.07.19"]
[EndTime "15:58:45"]

1. d4 {[%clk 0:03:03]}  d5 {[%clk 0:03:03]} 2. c4 {[%clk 0:03:04]}  e6 {[%clk 0:03:04]} 3. Nf3 {[%clk 0:03:05]}  Nf6 {[%clk 0:03:05]}
4. g3 {[%clk 0:03:06]}  Be7 {[%clk 0:03:05]} 5. Bg2 {[%clk 0:03:07]}  O-O {[%clk 0:03:04]} 6. O-O {[%clk 0:03:07]}  Nbd7 {[%clk 0:03:05]}
7. Qc2 {[%clk 0:03:07]}  c6 {[%clk 0:03:06]} 8. Nbd2 {[%clk 0:03:03]}  b6 {[%clk 0:03:06]} 9. e4 {[%clk 0:03:02]}  Bb7 {[%clk 0:03:06]}
10. Re1 {[%clk 0:02:46]}  Rc8 {[%clk 0:03:06]} 11. e5 {[%clk 0:02:33]}  Ne8 {[%clk 0:03:06]} 12. cxd5 {[%clk 0:02:25]}  cxd5 {[%clk 0:03:04]}
13. Qb3 {[%clk 0:02:16]}  Nc7 {[%clk 0:03:00]} 14. Nf1 {[%clk 0:02:16]}  b5 {[%clk 0:02:57]} 15. h4 {[%clk 0:02:07]}  Nb6 {[%clk 0:02:56]}
16. Bg5 {[%clk 0:02:05]}  Nc4 {[%clk 0:02:55]} 17. Rac1 {[%clk 0:01:58]}  h6 {[%clk 0:02:45]} 18. Bxe7 {[%clk 0:01:59]}  Qxe7 {[%clk 0:02:46]}
19. Re2 {[%clk 0:01:57]}  a5 {[%clk 0:02:41]} 20. Rec2 {[%clk 0:01:54]}  b4 {[%clk 0:02:36]} 21. Ne3 {[%clk 0:01:53]}  Nxe3 {[%clk 0:02:23]}
22. fxe3 {[%clk 0:01:47]}  Qd7 {[%clk 0:02:08]} 23. a3 {[%clk 0:01:41]}  Na6 {[%clk 0:02:01]} 24. axb4 {[%clk 0:01:39]}  Nxb4 {[%clk 0:02:00]}
25. Rc5 {[%clk 0:01:39]}  Rxc5 {[%clk 0:01:51]} 26. Rxc5 {[%clk 0:01:41]}  Ra8 {[%clk 0:01:51]} 27. Bf1 {[%clk 0:01:39]}  Bc6 {[%clk 0:01:40]}
28. Qa3 {[%clk 0:01:32]}  Qd8 {[%clk 0:01:28]} 29. Ne1 {[%clk 0:01:31]}  Qb6 {[%clk 0:01:27]} 30. Nd3 {[%clk 0:01:25]}  Nxd3 {[%clk 0:01:27]}
31. Bxd3 {[%clk 0:01:27]}  a4 {[%clk 0:01:26]} 32. Qc3 {[%clk 0:01:24]}  Bd7 {[%clk 0:01:19]} 33. Rc7 {[%clk 0:01:22]}  Be8 {[%clk 0:01:08]}
34. Bc2 {[%clk 0:01:20]}  Rb8 {[%clk 0:01:07]} 35. Rc8 {[%clk 0:01:12]}  Rxc8 {[%clk 0:00:59]} 36. Qxc8 {[%clk 0:01:13]}  Qc6 {[%clk 0:01:01]}
37. Qxc6 {[%clk 0:01:12]}  Bxc6 {[%clk 0:01:02]} 38. Kf2 {[%clk 0:01:12]}  Kf8 {[%clk 0:01:00]} 39. Ke1 {[%clk 0:01:13]}  f6 {[%clk 0:00:56]}
40. Kd2 {[%clk 0:01:13]}  fxe5 {[%clk 0:00:56]} 41. dxe5 {[%clk 0:01:14]}  Ke7 {[%clk 0:00:43]} 42. Kc3 {[%clk 0:01:16]}  g5 {[%clk 0:00:41]}
43. hxg5 {[%clk 0:01:11]}  hxg5 {[%clk 0:00:42]} 44. Kb4 {[%clk 0:01:12]}  Be8 {[%clk 0:00:39]} 45. Bxa4 {[%clk 0:01:12]}  Bg6 {[%clk 0:00:40]}
46. Kc5 {[%clk 0:01:12]}  Be4 {[%clk 0:00:36]} 47. b4 {[%clk 0:01:11]}  Bd3 {[%clk 0:00:23]} 48. b5 {[%clk 0:01:08]}  Kd7 {[%clk 0:00:18]}
49. b6+ {[%clk 0:01:09]}  Kc8 {[%clk 0:00:18]} 50. Bc6 {[%clk 0:01:08]}  Bf5 {[%clk 0:00:09]} 51. Kd6 {[%clk 0:01:07]}  Kb8 {[%clk 0:00:10]}
52. Bd7 {[%clk 0:01:07]}  Kb7 {[%clk 0:00:06]} 53. Bxe6 {[%clk 0:01:07]}  Bd3 {[%clk 0:00:05]} 54. Bxd5+ {[%clk 0:01:08]}  Kxb6 {[%clk 0:00:06]}
55. e6 {[%clk 0:01:09]}  Bg6 {[%clk 0:00:06]} 56. Bc6 {[%clk 0:01:09]} 1-0

[Event "2026 Biel Blitz Open"]
[Site "Biel, CH"]
[Date "2026.07.19"]
[Round "12"]
[White "Fogo Esquivel, Levi Kalani Alexander"]
[Black "Dong, Hongfu"]
[Result "0-1"]
[Board "10"]
[TimeControl "180+2"]
[WhiteFideId "5183189"]
[BlackFideId "8626960"]
[WhiteElo "2219"]
[BlackElo "2290"]
[WhiteTitle "FM"]
[WhiteClock "0:00:04"]
[BlackClock "0:00:10"]
[Variant "Standard"]
[EndDate "2026.07.19"]
[EndTime "15:58:44"]

1. e4 {[%clk 0:03:02]}  c5 {[%clk 0:03:04]} 2. Nf3 {[%clk 0:03:04]}  d6 {[%clk 0:03:05]} 3. c3 {[%clk 0:03:04]}  Nf6 {[%clk 0:03:06]}
4. Be2 {[%clk 0:03:06]}  g6 {[%clk 0:02:59]} 5. O-O {[%clk 0:03:07]}  Bg7 {[%clk 0:03:00]} 6. Bb5+ {[%clk 0:03:08]}  Bd7 {[%clk 0:03:02]}
7. Bxd7+ {[%clk 0:03:09]}  Qxd7 {[%clk 0:03:03]} 8. Re1 {[%clk 0:03:10]}  Nc6 {[%clk 0:02:55]} 9. d4 {[%clk 0:03:11]}  cxd4 {[%clk 0:02:56]}
10. cxd4 {[%clk 0:03:09]}  d5 {[%clk 0:02:57]} 11. e5 {[%clk 0:03:13]}  Ne4 {[%clk 0:02:59]} 12. Nc3 {[%clk 0:03:07]}  Nxc3 {[%clk 0:02:59]}
13. bxc3 {[%clk 0:03:08]}  O-O {[%clk 0:02:57]} 14. Qe2 {[%clk 0:02:45]}  Nd8 {[%clk 0:02:49]} 15. Rb1 {[%clk 0:02:42]}  Rc8 {[%clk 0:02:45]}
16. Bd2 {[%clk 0:02:28]}  a6 {[%clk 0:02:26]} 17. Rb2 {[%clk 0:02:11]}  Rc4 {[%clk 0:02:20]} 18. Reb1 {[%clk 0:02:09]}  b5 {[%clk 0:02:21]}
19. Rb4 {[%clk 0:01:54]}  Nc6 {[%clk 0:01:23]} 20. Rxc4 {[%clk 0:01:54]}  dxc4 {[%clk 0:01:21]} 21. Rd1 {[%clk 0:01:33]}  Qd5 {[%clk 0:01:22]}
22. Bc1 {[%clk 0:01:31]}  a5 {[%clk 0:01:13]} 23. a3 {[%clk 0:01:19]}  Rc8 {[%clk 0:01:13]} 24. Nd2 {[%clk 0:01:21]}  Nd8 {[%clk 0:00:42]}
25. Qe4 {[%clk 0:01:19]}  e6 {[%clk 0:00:43]} 26. Qc2 {[%clk 0:01:04]}  Nc6 {[%clk 0:00:28]} 27. Ne4 {[%clk 0:01:05]}  Rd8 {[%clk 0:00:30]}
28. Nd6 {[%clk 0:00:50]}  Bf8 {[%clk 0:00:25]} 29. Bg5 {[%clk 0:00:48]}  Rxd6 {[%clk 0:00:21]} 30. exd6 {[%clk 0:00:47]}  Qxg5 {[%clk 0:00:22]}
31. d7 {[%clk 0:00:43]}  Qd5 {[%clk 0:00:24]} 32. Rb1 {[%clk 0:00:38]}  Qxd7 {[%clk 0:00:25]} 33. Qb2 {[%clk 0:00:36]}  b4 {[%clk 0:00:25]}
34. axb4 {[%clk 0:00:37]}  axb4 {[%clk 0:00:26]} 35. cxb4 {[%clk 0:00:39]}  Bxb4 {[%clk 0:00:28]} 36. Rd1 {[%clk 0:00:31]}  c3 {[%clk 0:00:29]}
37. Qb3 {[%clk 0:00:32]}  Qd5 {[%clk 0:00:30]} 38. Qa4 {[%clk 0:00:28]}  Nxd4 {[%clk 0:00:26]} 39. h3 {[%clk 0:00:10]}  c2 {[%clk 0:00:20]}
40. Rf1 {[%clk 0:00:11]}  Qc4 {[%clk 0:00:14]} 41. Kh2 {[%clk 0:00:04]}  Bd6+ {[%clk 0:00:10]} 0-1

[Event "2026 Biel Blitz Open"]
[Site "Biel, CH"]
[Date "2026.07.19"]
[Round "12"]
[White "Kukushkin, Ivan"]
[Black "Erne, Raphael"]
[Result "1/2-1/2"]
[Board "11"]
[TimeControl "180+2"]
[WhiteFideId "11634103"]
[BlackFideId "1341928"]
[WhiteElo "2265"]
[BlackElo "2128"]
[WhiteTitle "FM"]
[WhiteClock "0:00:11"]
[BlackClock "0:00:04"]
[Variant "Standard"]
[EndDate "2026.07.19"]
[EndTime "16:07:15"]

1. e4 {[%clk 0:03:03]}  c6 {[%clk 0:03:03]} 2. Nf3 {[%clk 0:03:04]}  d5 {[%clk 0:03:04]} 3. exd5 {[%clk 0:03:05]}  cxd5 {[%clk 0:03:05]}
4. Ne5 {[%clk 0:03:06]}  Nc6 {[%clk 0:03:02]} 5. Bb5 {[%clk 0:03:06]}  Bd7 {[%clk 0:03:00]} 6. Nxd7 {[%clk 0:03:07]}  Qxd7 {[%clk 0:03:01]}
7. d4 {[%clk 0:03:08]}  Nf6 {[%clk 0:03:00]} 8. c3 {[%clk 0:03:08]}  e6 {[%clk 0:03:00]} 9. O-O {[%clk 0:03:08]}  Bd6 {[%clk 0:02:57]}
10. Re1 {[%clk 0:03:07]}  O-O {[%clk 0:02:56]} 11. Nd2 {[%clk 0:03:08]}  a6 {[%clk 0:02:54]} 12. Bd3 {[%clk 0:03:08]}  e5 {[%clk 0:02:53]}
13. dxe5 {[%clk 0:03:04]}  Nxe5 {[%clk 0:02:40]} 14. Nf3 {[%clk 0:02:54]}  Rfe8 {[%clk 0:02:41]} 15. Be3 {[%clk 0:02:30]}  Nc4 {[%clk 0:02:19]}
16. Bxc4 {[%clk 0:01:43]}  dxc4 {[%clk 0:02:19]} 17. Bd4 {[%clk 0:01:45]}  Rxe1+ {[%clk 0:01:58]} 18. Qxe1 {[%clk 0:01:45]}  Re8 {[%clk 0:01:57]}
19. Qf1 {[%clk 0:01:45]}  Nd5 {[%clk 0:01:25]} 20. Qxc4 {[%clk 0:01:37]}  Nf4 {[%clk 0:01:26]} 21. Be3 {[%clk 0:01:28]}  b5 {[%clk 0:01:13]}
22. Qf1 {[%clk 0:01:23]}  Nd5 {[%clk 0:00:57]} 23. Bd2 {[%clk 0:01:19]}  Qg4 {[%clk 0:00:51]} 24. Re1 {[%clk 0:01:18]}  Rd8 {[%clk 0:00:48]}
25. h3 {[%clk 0:01:16]}  Qg6 {[%clk 0:00:48]} 26. Qe2 {[%clk 0:01:15]}  h6 {[%clk 0:00:47]} 27. Nd4 {[%clk 0:01:06]}  Nb6 {[%clk 0:00:32]}
28. Qf3 {[%clk 0:01:02]}  Nc4 {[%clk 0:00:29]} 29. Bc1 {[%clk 0:01:02]}  Bc5 {[%clk 0:00:25]} 30. Nc6 {[%clk 0:00:59]}  Rc8 {[%clk 0:00:24]}
31. Ne7+ {[%clk 0:00:58]}  Bxe7 {[%clk 0:00:25]} 32. Rxe7 {[%clk 0:00:58]}  Rd8 {[%clk 0:00:21]} 33. Re1 {[%clk 0:00:56]}  Qd6 {[%clk 0:00:17]}
34. b3 {[%clk 0:00:49]}  Ne5 {[%clk 0:00:18]} 35. Qg3 {[%clk 0:00:49]}  Ng6 {[%clk 0:00:11]} 36. Qe3 {[%clk 0:00:46]}  Rc8 {[%clk 0:00:08]}
37. Bb2 {[%clk 0:00:45]}  Qc6 {[%clk 0:00:08]} 38. Qd4 {[%clk 0:00:44]}  Qc7 {[%clk 0:00:07]} 39. c4 {[%clk 0:00:45]}  f6 {[%clk 0:00:04]}
40. cxb5 {[%clk 0:00:45]}  axb5 {[%clk 0:00:05]} 41. Qd5+ {[%clk 0:00:46]}  Kh7 {[%clk 0:00:05]} 42. Qxb5 {[%clk 0:00:46]}  Rd8 {[%clk 0:00:03]}
43. Qe2 {[%clk 0:00:45]}  Qa5 {[%clk 0:00:04]} 44. a3 {[%clk 0:00:45]}  Rd2 {[%clk 0:00:05]} 45. Qe3 {[%clk 0:00:35]}  Rxb2 {[%clk 0:00:06]}
46. b4 {[%clk 0:00:37]}  Qb5 {[%clk 0:00:06]} 47. Qe4 {[%clk 0:00:36]}  Rb3 {[%clk 0:00:05]} 48. Ra1 {[%clk 0:00:31]}  Qa4 {[%clk 0:00:04]}
49. h4 {[%clk 0:00:29]}  h5 {[%clk 0:00:05]} 50. Qf5 {[%clk 0:00:30]}  Rxa3 {[%clk 0:00:03]} 51. Qxh5+ {[%clk 0:00:31]}  Kg8 {[%clk 0:00:05]}
52. Rxa3 {[%clk 0:00:31]}  Qxa3 {[%clk 0:00:06]} 53. Qxg6 {[%clk 0:00:32]}  Qxb4 {[%clk 0:00:05]} 54. Qe8+ {[%clk 0:00:30]}  Kh7 {[%clk 0:00:10]}
55. h5 {[%clk 0:00:31]}  Qb1+ {[%clk 0:00:08]} 56. Kh2 {[%clk 0:00:32]}  Qf5 {[%clk 0:00:07]} 57. f3 {[%clk 0:00:33]}  Qf4+ {[%clk 0:00:08]}
58. Kh3 {[%clk 0:00:34]}  Qf5+ {[%clk 0:00:09]} 59. Kg3 {[%clk 0:00:35]}  Qg5+ {[%clk 0:00:10]} 60. Kf2 {[%clk 0:00:36]}  Qd2+ {[%clk 0:00:11]}
61. Qe2 {[%clk 0:00:36]}  Qd4+ {[%clk 0:00:11]} 62. Qe3 {[%clk 0:00:37]}  Qh4+ {[%clk 0:00:12]} 63. g3 {[%clk 0:00:38]}  Qxh5 {[%clk 0:00:13]}
64. Qe4+ {[%clk 0:00:40]}  Qg6 {[%clk 0:00:14]} 65. Qh4+ {[%clk 0:00:41]}  Qh6 {[%clk 0:00:15]} 66. Qg4 {[%clk 0:00:41]}  Qg6 {[%clk 0:00:16]}
67. Qf4 {[%clk 0:00:42]}  Qc2+ {[%clk 0:00:15]} 68. Kg1 {[%clk 0:00:43]}  Qb1+ {[%clk 0:00:15]} 69. Kh2 {[%clk 0:00:44]}  Qc2+ {[%clk 0:00:16]}
70. Kh3 {[%clk 0:00:45]}  Qg6 {[%clk 0:00:17]} 71. Qd6 {[%clk 0:00:38]}  Qf5+ {[%clk 0:00:16]} 72. Kg2 {[%clk 0:00:39]}  Qc2+ {[%clk 0:00:16]}
73. Kf1 {[%clk 0:00:38]}  Qc1+ {[%clk 0:00:16]} 74. Ke2 {[%clk 0:00:39]}  Qc2+ {[%clk 0:00:17]} 75. Ke3 {[%clk 0:00:41]}  Qf5 {[%clk 0:00:16]}
76. g4 {[%clk 0:00:41]}  Qg5+ {[%clk 0:00:15]} 77. Kf2 {[%clk 0:00:41]}  Qh4+ {[%clk 0:00:15]} 78. Kg2 {[%clk 0:00:43]}  Qg5 {[%clk 0:00:13]}
79. Qd3+ {[%clk 0:00:44]}  Qg6 {[%clk 0:00:17]} 80. Qc3 {[%clk 0:00:44]}  Qg5 {[%clk 0:00:18]} 81. Qc2+ {[%clk 0:00:42]}  Qg6 {[%clk 0:00:19]}
82. Qc5 {[%clk 0:00:41]}  Qd3 {[%clk 0:00:18]} 83. Kg3 {[%clk 0:00:41]}  Qg6 {[%clk 0:00:19]} 84. Qd5 {[%clk 0:00:41]}  Qh6 {[%clk 0:00:19]}
85. f4 {[%clk 0:00:42]}  Qg6 {[%clk 0:00:18]} 86. g5 {[%clk 0:00:41]}  fxg5 {[%clk 0:00:14]} 87. fxg5 {[%clk 0:00:42]}  Qh5 {[%clk 0:00:11]}
88. Qe4+ {[%clk 0:00:42]}  Qg6 {[%clk 0:00:12]} 89. Qd5 {[%clk 0:00:43]}  Qc2 {[%clk 0:00:10]} 90. Qf3 {[%clk 0:00:42]}  Qc7+ {[%clk 0:00:10]}
91. Kg4 {[%clk 0:00:42]}  Qc4+ {[%clk 0:00:11]} 92. Kh3 {[%clk 0:00:40]}  Qc8+ {[%clk 0:00:12]} 93. Kg2 {[%clk 0:00:40]}  Qc2+ {[%clk 0:00:11]}
94. Kg3 {[%clk 0:00:41]}  Qc7+ {[%clk 0:00:11]} 95. Kg4 {[%clk 0:00:41]}  Qd7+ {[%clk 0:00:12]} 96. Kh4 {[%clk 0:00:39]}  Qd4+ {[%clk 0:00:12]}
97. Kh3 {[%clk 0:00:39]}  Qd7+ {[%clk 0:00:14]} 98. Kh2 {[%clk 0:00:40]}  Qd2+ {[%clk 0:00:14]} 99. Kh3 {[%clk 0:00:38]}  Qxg5 {[%clk 0:00:15]}
100. Qe4+ {[%clk 0:00:39]}  Kh6 {[%clk 0:00:13]} 101. Qe6+ {[%clk 0:00:40]}  Qg6 {[%clk 0:00:13]} 102. Qe3+ {[%clk 0:00:41]}  Kh7 {[%clk 0:00:13]}
103. Qf3 {[%clk 0:00:37]}  Qe6+ {[%clk 0:00:13]} 104. Kg2 {[%clk 0:00:36]}  Kg6 {[%clk 0:00:13]} 105. Qg3+ {[%clk 0:00:37]}  Kf6 {[%clk 0:00:14]}
106. Qf4+ {[%clk 0:00:38]}  Qf5 {[%clk 0:00:15]} 107. Qd6+ {[%clk 0:00:39]}  Kg5 {[%clk 0:00:15]} 108. Qe7+ {[%clk 0:00:39]}  Qf6 {[%clk 0:00:15]}
109. Qe3+ {[%clk 0:00:40]}  Kg6 {[%clk 0:00:15]} 110. Qe4+ {[%clk 0:00:41]}  Qf5 {[%clk 0:00:16]} 111. Qc6+ {[%clk 0:00:41]}  Kg5 {[%clk 0:00:14]}
112. Qe8 {[%clk 0:00:29]}  Kf4 {[%clk 0:00:08]} 113. Qb8+ {[%clk 0:00:29]}  Qe5 {[%clk 0:00:08]} 114. Qf8+ {[%clk 0:00:29]}  Kg5 {[%clk 0:00:06]}
115. Qd8+ {[%clk 0:00:30]}  Qf6 {[%clk 0:00:04]} 116. Qd5+ {[%clk 0:00:30]}  Kg6 {[%clk 0:00:08]} 117. Qe4+ {[%clk 0:00:30]}  Qf5 {[%clk 0:00:10]}
118. Qe8+ {[%clk 0:00:31]}  Kg5 {[%clk 0:00:10]} 119. Qe7+ {[%clk 0:00:32]}  Qf6 {[%clk 0:00:11]} 120. Qe3+ {[%clk 0:00:33]}  Kh5 {[%clk 0:00:12]}
121. Qh3+ {[%clk 0:00:33]}  Kg6 {[%clk 0:00:13]} 122. Qd3+ {[%clk 0:00:33]}  Kh6 {[%clk 0:00:14]} 123. Qh3+ {[%clk 0:00:33]}  Kg6 {[%clk 0:00:15]}
124. Qd3+ {[%clk 0:00:34]}  Qf5 {[%clk 0:00:15]} 125. Qd6+ {[%clk 0:00:35]}  Kh5 {[%clk 0:00:15]} 126. Qh2+ {[%clk 0:00:35]}  Kg5 {[%clk 0:00:14]}
127. Qh8 {[%clk 0:00:30]}  g6 {[%clk 0:00:14]} 128. Qd8+ {[%clk 0:00:31]}  Kf4 {[%clk 0:00:12]} 129. Qc7+ {[%clk 0:00:29]}  Kg4 {[%clk 0:00:13]}
130. Qc4+ {[%clk 0:00:22]}  Qf4 {[%clk 0:00:14]} 131. Qe6+ {[%clk 0:00:22]}  Kg5 {[%clk 0:00:11]} 132. Qe7+ {[%clk 0:00:22]}  Qf6 {[%clk 0:00:09]}
133. Qc5+ {[%clk 0:00:23]}  Kh6 {[%clk 0:00:09]} 134. Qc8 {[%clk 0:00:18]}  Qg5+ {[%clk 0:00:10]} 135. Kh3 {[%clk 0:00:19]}  Qe3+ {[%clk 0:00:10]}
136. Kg2 {[%clk 0:00:20]}  Qe4+ {[%clk 0:00:10]} 137. Kh2 {[%clk 0:00:20]}  Kg5 {[%clk 0:00:07]} 138. Qd8+ {[%clk 0:00:20]}  Kf5 {[%clk 0:00:07]}
139. Qf8+ {[%clk 0:00:20]}  Kg4 {[%clk 0:00:07]} 140. Qc8+ {[%clk 0:00:21]}  Qf5 {[%clk 0:00:08]} 141. Qd8 {[%clk 0:00:17]}  Qf2+ {[%clk 0:00:09]}
142. Kh1 {[%clk 0:00:18]}  Qf3+ {[%clk 0:00:09]} 143. Kg1 {[%clk 0:00:17]}  Qe3+ {[%clk 0:00:09]} 144. Kh1 {[%clk 0:00:17]}  Qe1+ {[%clk 0:00:10]}
145. Kg2 {[%clk 0:00:18]}  Qe2+ {[%clk 0:00:11]} 146. Kg1 {[%clk 0:00:20]}  Qe3+ {[%clk 0:00:10]} 147. Kh1 {[%clk 0:00:21]}  Qf3+ {[%clk 0:00:10]}
148. Kg1 {[%clk 0:00:21]}  g5 {[%clk 0:00:09]} 149. Qd7+ {[%clk 0:00:22]}  Kh4 {[%clk 0:00:09]} 150. Qh7+ {[%clk 0:00:21]}  Kg4 {[%clk 0:00:09]}
151. Qd7+ {[%clk 0:00:22]}  Qf5 {[%clk 0:00:10]} 152. Qd4+ {[%clk 0:00:23]}  Qf4 {[%clk 0:00:11]} 153. Qd7+ {[%clk 0:00:24]}  Kg3 {[%clk 0:00:10]}
154. Qd3+ {[%clk 0:00:24]}  Qf3 {[%clk 0:00:10]} 155. Qd6+ {[%clk 0:00:24]}  Kg4 {[%clk 0:00:09]} 156. Qd7+ {[%clk 0:00:24]}  Kh4 {[%clk 0:00:09]}
157. Qh7+ {[%clk 0:00:25]}  Kg3 {[%clk 0:00:09]} 158. Qh2+ {[%clk 0:00:25]}  Kg4 {[%clk 0:00:11]} 159. Qb2 {[%clk 0:00:15]}  Qe3+ {[%clk 0:00:08]}
160. Kg2 {[%clk 0:00:15]}  Qg3+ {[%clk 0:00:09]} 161. Kh1 {[%clk 0:00:16]}  Kh3 {[%clk 0:00:06]} 162. Qe2 {[%clk 0:00:15]}  Kh4 {[%clk 0:00:04]}
163. Qh5+ {[%clk 0:00:11]} 1/2-1/2

[Event "2026 Biel Blitz Open"]
[Site "Biel, CH"]
[Date "2026.07.19"]
[Round "12"]
[White "Ashwath Kaushik"]
[Black "Schweizer, Simon"]
[Result "1-0"]
[Board "12"]
[TimeControl "180+2"]
[WhiteFideId "33387230"]
[BlackFideId "1325361"]
[WhiteElo "2122"]
[BlackElo "2182"]
[WhiteTitle "FM"]
[WhiteClock "0:00:23"]
[BlackClock "0:00:26"]
[Variant "Standard"]
[EndDate "2026.07.19"]
[EndTime "15:59:25"]

1. d4 {[%clk 0:03:04]}  Nf6 {[%clk 0:03:03]} 2. Nf3 {[%clk 0:03:05]}  e6 {[%clk 0:03:04]} 3. c4 {[%clk 0:03:06]}  d5 {[%clk 0:03:05]}
4. g3 {[%clk 0:03:07]}  c5 {[%clk 0:03:03]} 5. cxd5 {[%clk 0:03:05]}  cxd4 {[%clk 0:03:02]} 6. dxe6 {[%clk 0:03:04]}  Bxe6 {[%clk 0:03:02]}
7. Qxd4 {[%clk 0:03:05]}  Nc6 {[%clk 0:03:02]} 8. Qxd8+ {[%clk 0:03:00]}  Rxd8 {[%clk 0:03:04]} 9. a3 {[%clk 0:02:55]}  Bd5 {[%clk 0:02:55]}
10. Bg2 {[%clk 0:02:54]}  Nd4 {[%clk 0:02:56]} 11. Nxd4 {[%clk 0:02:33]}  Bxg2 {[%clk 0:02:57]} 12. Rg1 {[%clk 0:02:34]}  Bh3 {[%clk 0:02:44]}
13. Nf3 {[%clk 0:02:26]}  Be7 {[%clk 0:02:42]} 14. Nc3 {[%clk 0:02:27]}  h6 {[%clk 0:02:42]} 15. Bd2 {[%clk 0:02:25]}  O-O {[%clk 0:02:34]}
16. O-O-O {[%clk 0:02:26]}  Bf5 {[%clk 0:02:31]} 17. Be3 {[%clk 0:02:17]}  b6 {[%clk 0:02:14]} 18. Nd4 {[%clk 0:02:18]}  Bd7 {[%clk 0:02:13]}
19. f3 {[%clk 0:02:09]}  Rfe8 {[%clk 0:02:12]} 20. Bf2 {[%clk 0:02:09]}  Rc8 {[%clk 0:02:10]} 21. Nc2 {[%clk 0:02:05]}  b5 {[%clk 0:01:58]}
22. e4 {[%clk 0:02:04]}  Bxa3 {[%clk 0:01:33]} 23. Nxa3 {[%clk 0:02:02]}  b4 {[%clk 0:01:34]} 24. Nab1 {[%clk 0:01:35]}  bxc3 {[%clk 0:01:32]}
25. Nxc3 {[%clk 0:01:36]}  a5 {[%clk 0:01:31]} 26. Bd4 {[%clk 0:01:37]}  Ba4 {[%clk 0:01:24]} 27. Rd2 {[%clk 0:01:34]}  Nh7 {[%clk 0:01:16]}
28. Kb1 {[%clk 0:01:32]}  Bb3 {[%clk 0:01:17]} 29. Rc1 {[%clk 0:01:26]}  Nf8 {[%clk 0:01:17]} 30. Ne2 {[%clk 0:01:26]}  Ne6 {[%clk 0:01:14]}
31. Rc3 {[%clk 0:01:23]}  a4 {[%clk 0:01:14]} 32. Nc1 {[%clk 0:01:19]}  Bc4 {[%clk 0:01:08]} 33. Be3 {[%clk 0:01:09]}  Bb5 {[%clk 0:01:04]}
34. Rxc8 {[%clk 0:01:02]}  Rxc8 {[%clk 0:01:05]} 35. Na2 {[%clk 0:01:03]}  Bc4 {[%clk 0:01:00]} 36. Nc3 {[%clk 0:01:04]}  Bb3 {[%clk 0:00:59]}
37. f4 {[%clk 0:00:57]}  Nc7 {[%clk 0:00:48]} 38. Rd4 {[%clk 0:00:53]}  Ra8 {[%clk 0:00:42]} 39. Rb4 {[%clk 0:00:51]}  Ne6 {[%clk 0:00:38]}
40. f5 {[%clk 0:00:50]}  Ng5 {[%clk 0:00:37]} 41. Bxg5 {[%clk 0:00:51]}  hxg5 {[%clk 0:00:39]} 42. Kc1 {[%clk 0:00:37]}  f6 {[%clk 0:00:39]}
43. Kd2 {[%clk 0:00:37]}  Kh7 {[%clk 0:00:38]} 44. Ke3 {[%clk 0:00:38]}  Kh6 {[%clk 0:00:35]} 45. g4 {[%clk 0:00:39]}  Kh7 {[%clk 0:00:36]}
46. Rb7 {[%clk 0:00:35]}  Kg8 {[%clk 0:00:37]} 47. Nb5 {[%clk 0:00:36]}  Rc8 {[%clk 0:00:32]} 48. Nd4 {[%clk 0:00:35]}  Bd1 {[%clk 0:00:31]}
49. Ne6 {[%clk 0:00:31]}  Bxg4 {[%clk 0:00:31]} 50. Rxg7+ {[%clk 0:00:32]}  Kh8 {[%clk 0:00:32]} 51. Rg6 {[%clk 0:00:32]}  Rc2 {[%clk 0:00:31]}
52. h3 {[%clk 0:00:28]}  Bd1 {[%clk 0:00:29]} 53. Rxf6 {[%clk 0:00:27]}  Rxb2 {[%clk 0:00:30]} 54. Rf8+ {[%clk 0:00:24]}  Kh7 {[%clk 0:00:30]}
55. Nxg5+ {[%clk 0:00:25]}  Kh6 {[%clk 0:00:30]} 56. Ne6 {[%clk 0:00:26]}  Kh7 {[%clk 0:00:29]} 57. f6 {[%clk 0:00:25]}  Bb3 {[%clk 0:00:24]}
58. f7 {[%clk 0:00:22]}  Bxe6 {[%clk 0:00:25]} 59. Rh8+ {[%clk 0:00:23]}  Kxh8 {[%clk 0:00:26]} 60. f8=Q+ {[%clk 0:00:23]} 1-0

[Event "2026 Biel Blitz Open"]
[Site "Biel, CH"]
[Date "2026.07.19"]
[Round "12"]
[White "Stefan, Iulia-Cristiana"]
[Black "Amonatov, Farrukh"]
[Result "0-1"]
[Board "13"]
[TimeControl "180+2"]
[WhiteFideId "1273876"]
[BlackFideId "14700077"]
[WhiteElo "2050"]
[BlackElo "2585"]
[WhiteTitle "WFM"]
[BlackTitle "GM"]
[WhiteClock "0:00:07"]
[BlackClock "0:00:10"]
[Variant "Standard"]
[EndDate "2026.07.19"]
[EndTime "16:03:19"]

1. d4 {[%clk 0:03:04]}  Nf6 {[%clk 0:03:03]} 2. Nf3 {[%clk 0:03:05]}  g6 {[%clk 0:03:04]} 3. c4 {[%clk 0:03:06]}  Bg7 {[%clk 0:03:05]}
4. g3 {[%clk 0:03:06]}  O-O {[%clk 0:03:04]} 5. Bg2 {[%clk 0:03:07]}  c5 {[%clk 0:03:05]} 6. Nc3 {[%clk 0:03:04]}  d6 {[%clk 0:03:02]}
7. O-O {[%clk 0:02:59]}  Nc6 {[%clk 0:02:50]} 8. dxc5 {[%clk 0:02:59]}  dxc5 {[%clk 0:02:51]} 9. Bf4 {[%clk 0:03:00]}  Qa5 {[%clk 0:02:49]}
10. Ne5 {[%clk 0:02:22]}  Nd4 {[%clk 0:02:30]} 11. Re1 {[%clk 0:01:10]}  Nh5 {[%clk 0:02:12]} 12. Rc1 {[%clk 0:01:03]}  Nxf4 {[%clk 0:02:11]}
13. gxf4 {[%clk 0:01:05]}  Be6 {[%clk 0:01:56]} 14. e3 {[%clk 0:00:58]}  Nf5 {[%clk 0:01:49]} 15. Qa4 {[%clk 0:00:54]}  Qc7 {[%clk 0:01:46]}
16. Nd3 {[%clk 0:00:40]}  Nh4 {[%clk 0:01:43]} 17. Nd5 {[%clk 0:00:36]}  Qd6 {[%clk 0:01:34]} 18. Bh1 {[%clk 0:00:31]}  b6 {[%clk 0:01:31]}
19. Qc2 {[%clk 0:00:21]}  Bg4 {[%clk 0:01:28]} 20. Ne5 {[%clk 0:00:10]}  Bxe5 {[%clk 0:01:23]} 21. fxe5 {[%clk 0:00:11]}  Qxe5 {[%clk 0:01:23]}
22. f4 {[%clk 0:00:11]}  Qd6 {[%clk 0:01:16]} 23. Qe4 {[%clk 0:00:10]}  Rae8 {[%clk 0:01:14]} 24. Qc2 {[%clk 0:00:01]}  Nf3+ {[%clk 0:01:05]}
25. Bxf3 {[%clk 0:00:04]}  Bxf3 {[%clk 0:01:06]} 26. e4 {[%clk 0:00:04]}  Qd7 {[%clk 0:00:42]} 27. Qf2 {[%clk 0:00:05]}  Qg4+ {[%clk 0:00:24]}
28. Qg3 {[%clk 0:00:07]}  Qxg3+ {[%clk 0:00:24]} 29. hxg3 {[%clk 0:00:08]}  f5 {[%clk 0:00:21]} 30. e5 {[%clk 0:00:04]}  Kf7 {[%clk 0:00:14]}
31. Kf2 {[%clk 0:00:05]}  Be4 {[%clk 0:00:13]} 32. Rcd1 {[%clk 0:00:04]}  Rd8 {[%clk 0:00:14]} 33. Nc7 {[%clk 0:00:05]}  h6 {[%clk 0:00:10]}
34. Nb5 {[%clk 0:00:05]}  a6 {[%clk 0:00:09]} 35. Nc7 {[%clk 0:00:06]}  Bb7 {[%clk 0:00:09]} 36. e6+ {[%clk 0:00:05]}  Kf6 {[%clk 0:00:08]}
37. Nd5+ {[%clk 0:00:05]}  Bxd5 {[%clk 0:00:09]} 38. cxd5 {[%clk 0:00:05]}  Rd6 {[%clk 0:00:09]} 39. Rh1 {[%clk 0:00:04]}  h5 {[%clk 0:00:09]}
40. Rhe1 {[%clk 0:00:05]}  Rfd8 {[%clk 0:00:10]} 41. Re5 {[%clk 0:00:06]}  c4 {[%clk 0:00:11]} 42. Ke3 {[%clk 0:00:07]}  Rh8 {[%clk 0:00:09]}
43. Rh1 {[%clk 0:00:07]}  g5 {[%clk 0:00:10]} 44. fxg5+ {[%clk 0:00:07]}  Kxe5 {[%clk 0:00:10]} 0-1